bitfinex-derivatives/quotes_BNBF0:USTF0_20250220
["timestamp","ask_amount","ask_price","bid_price","bid_amount"]
[1740062707424,3.54364656,651.85,649.79,1.13184479]
[1740062707620,3.54364656,651.84,649.79,1.13184479]
[1740062707821,0.28206028,651.83,649.79,1.13184479]
[1740062708025,0.28206028,651.82,649.79,1.13184479]
[1740062708326,0.28206028,651.81,649.79,1.13184479]
[1740062708523,0.28206028,651.8,649.79,1.13184479]
[1740062708719,0.28206028,651.79,649.79,1.13184479]
[1740062708926,0.28206028,651.86,649.79,1.13184479]
[1740062709123,0.28206028,651.85,649.79,1.13184479]
[1740062709323,0.28206028,651.84,649.79,1.13184479]
[1740062709625,0.28206028,651.83,649.79,1.13184479]
[1740062709821,1.14217982,651.87,649.79,1.13184479]
[1740062710027,1.14217982,651.69,649.34,1.13184479]
[1740062710221,0.2823492,651.68,649.34,1.13184479]
[1740062710421,0.2823492,651.67,649.34,1.13184479]
[1740062710723,0.2823492,651.66,649.34,1.13184479]
[1740062710927,1.14217982,651.69,649.34,1.13184479]
[1740062710928,0.2823492,651.68,649.34,1.13184479]
[1740062711228,0.2823492,651.67,649.34,1.13184479]
[1740062711427,0.2823492,651.68,649.34,1.13184479]
[1740062711621,0.2823492,651.67,649.34,1.13184479]
[1740062711821,1.14217982,651.69,649.34,1.13184479]
[1740062711822,0.2823492,651.66,649.34,1.13184479]
[1740062712021,0.2823492,651.65,649.34,1.13184479]
[1740062712328,0.2823492,651.64,649.34,1.13184479]
[1740062712524,0.2823492,651.63,649.34,1.13184479]
[1740062712725,0.2823492,651.62,649.34,1.13184479]
[1740062712925,0.2823492,651.61,649.34,1.13184479]
[1740062713126,0.2823492,651.6,649.34,1.13184479]
[1740062713327,0.2823492,651.59,649.34,1.13184479]
[1740062713630,0.2823492,651.58,647.9,1.13184479]
[1740062713829,0.2823492,651.57,647.9,1.13184479]
[1740062714025,0.2823492,651.56,647.9,1.13184479]
[1740062714230,0.2823492,651.55,647.9,1.13184479]
[1740062714430,0.2823492,651.54,647.9,1.13184479]
[1740062714631,0.2823492,651.53,647.9,1.13184479]
[1740062714831,0.28219221,651.52,647.9,1.13184479]
[1740062715130,0.28219221,651.51,647.9,1.13184479]
[1740062715332,0.28219221,651.5,647.9,1.13184479]
[1740062715531,0.28219221,651.49,647.9,1.13184479]
[1740062715825,0.28219221,651.48,647.9,1.13184479]
[1740062716031,0.28219221,651.47,647.9,1.13184479]
[1740062716331,0.28219221,651.46,647.9,1.13184479]
[1740062716531,0.28219221,651.45,647.9,1.13184479]
[1740062716725,0.28219221,651.44,647.9,1.13184479]
[1740062716928,0.28219221,651.72,648.38,1.13184479]
[1740062717125,0.28219221,651.71,648.38,1.13184479]
[1740062717330,0.28219221,651.7,648.38,1.13184479]
[1740062717532,0.28219221,651.69,648.38,1.13184479]
[1740062717731,0.28219221,651.68,648.38,1.13184479]
[1740062717932,3.23569646,652.17,648.38,1.13184479]
[1740062718126,4.28581815,652.16,648.38,1.13184479]
[1740062718328,4.28581815,652.15,648.38,1.13184479]
[1740062718529,4.28581815,652.14,648.38,1.13184479]
[1740062718731,6.68485419,652.13,648.38,1.13184479]
[1740062718930,4.28581815,652.12,648.38,1.13184479]
[1740062719133,4.28581815,652.11,648.38,1.13184479]
[1740062719432,4.28581815,652.1,648.38,1.13184479]
[1740062719735,4.28581815,652.09,648.45,2.73670857]
[1740062719933,4.28581815,652.08,648.45,2.73670857]
[1740062720135,4.28581815,652.07,648.45,2.73670857]
[1740062720331,4.28581815,652.06,648.45,2.73670857]
[1740062720532,4.28581815,652.05,648.45,2.73670857]
[1740062720830,4.28581815,652.04,648.45,2.73670857]
[1740062721035,4.28581815,652.03,648.45,2.73670857]
[1740062721234,4.28581815,652.02,648.45,2.73670857]
[1740062721437,4.28581815,652.01,648.45,2.73670857]
[1740062721635,4.28581815,652.0,648.45,2.73670857]
[1740062721932,4.28581815,651.99,648.45,2.73670857]
[1740062722131,1.14217982,651.94,648.45,1.60486378]
[1740062722336,4.28581815,651.93,648.45,1.60486378]
[1740062722535,4.28581815,651.92,648.45,1.60486378]
[1740062722735,4.28581815,651.91,648.45,1.60486378]
[1740062722938,3.23569646,651.9,648.45,1.60486378]
[1740062723135,6.68533996,651.89,648.45,1.60486378]
[1740062723335,4.28630392,651.88,648.45,1.60486378]
[1740062723639,4.28630392,651.87,648.45,1.60486378]
[1740062723836,4.28630392,651.86,648.45,1.60486378]
[1740062724035,4.28630392,651.85,648.45,1.60486378]
[1740062724232,4.28630392,651.84,648.45,1.60486378]
[1740062724436,4.28630392,651.83,648.45,1.60486378]
[1740062724739,4.28631536,651.82,648.45,1.60486378]
[1740062725039,4.28631536,651.81,648.45,1.60486378]
[1740062725237,4.28631536,651.8,648.45,1.60486378]
[1740062725538,4.28631536,651.79,648.45,1.60486378]
[1740062725735,4.28631536,651.78,648.45,1.60486378]
[1740062725935,4.28631536,651.77,648.45,1.60486378]
[1740062726136,4.28631536,651.76,648.45,1.60486378]
[1740062726332,4.28631536,651.75,648.45,1.60486378]
[1740062726537,4.28631536,651.74,648.45,1.60486378]
[1740062726839,6.6853514,651.73,648.45,1.60486378]
[1740062727139,4.28631536,651.72,648.45,1.60486378]
[1740062727339,2.39903604,651.73,648.45,1.60486378]
[1740062727340,4.28631536,651.71,648.45,1.60486378]
[1740062727642,4.28631536,651.7,648.45,1.60486378]
[1740062727835,4.28631536,651.69,648.45,1.60486378]
[1740062728034,4.28631536,651.68,648.45,1.60486378]
[1740062728234,4.28631536,651.67,648.02,1.13184479]
[1740062728438,4.28631536,651.66,648.02,1.13184479]
[1740062728640,4.28631536,651.65,648.44,1.60582033]
[1740062728835,4.28631536,651.64,648.44,1.60582033]
[1740062729039,4.28631536,651.63,647.96,1.13184479]
[1740062729242,1.0506189,651.62,648.44,1.60582033]
[1740062729442,0.28232964,651.61,647.96,1.13184479]
[1740062729648,0.28232964,651.6,647.97,1.6060859]
[1740062729940,0.28232964,651.59,647.97,1.6060859]
[1740062730243,0.28232964,651.58,647.97,1.6060859]
[1740062730437,0.28232964,651.57,647.97,1.6060859]
[1740062730643,0.28232964,651.56,647.97,1.6060859]
[1740062730838,0.28232964,651.55,647.97,1.6060859]
[1740062731045,0.28232964,651.54,647.97,1.6060859]
[1740062731245,0.28232964,651.53,647.97,1.6060859]
[1740062731445,1.0506189,651.52,647.97,1.6060859]
[1740062731646,1.0506189,651.51,647.97,1.6060859]
[1740062731845,1.0506189,651.5,647.97,1.6060859]
[1740062732147,0.28232964,651.49,648.08,1.13184479]
[1740062732347,0.28232964,651.48,648.08,1.13184479]
[1740062732645,0.28232964,651.47,648.08,1.13184479]
[1740062732847,0.28238108,651.46,648.08,1.13184479]
[1740062733045,0.28238108,651.45,648.08,1.13184479]
[1740062733240,0.28238108,651.44,648.08,1.13184479]
[1740062733440,0.28238108,651.43,648.08,1.13184479]
[1740062733640,0.28238108,651.42,648.08,1.13184479]
[1740062733843,0.28238108,651.41,648.08,1.13184479]
[1740062734044,0.28238108,651.4,648.08,1.13184479]
[1740062734239,0.28238108,651.39,648.08,1.13184479]
[1740062734443,3.23569646,651.67,648.08,1.13184479]
[1740062734647,0.28239287,651.66,648.08,1.13184479]
[1740062734848,0.28239287,651.65,648.08,1.13184479]
[1740062735147,1.05081666,651.64,648.08,1.13184479]
[1740062735348,1.05081666,651.63,648.08,1.13184479]
[1740062735544,1.05081666,651.63,648.14,1.13184479]
[1740062735743,1.05081666,651.62,648.14,1.13184479]
[1740062735947,0.28239287,651.61,648.14,1.13184479]
[1740062736147,0.28239287,651.6,648.14,1.13184479]
[1740062736349,0.28239287,651.59,648.14,1.13184479]
[1740062736546,0.28239287,651.58,648.14,1.13184479]
[1740062736747,0.28239287,651.57,648.14,1.13184479]
[1740062737144,0.28239287,651.56,648.14,1.13184479]
[1740062737344,1.05081666,651.55,648.14,1.13184479]
[1740062737548,0.28239287,651.54,648.14,1.13184479]
[1740062737849,1.14217982,651.46,648.59,1.13184479]
[1740062738051,0.28239287,651.45,648.59,1.13184479]
[1740062738246,0.28239287,651.44,648.59,1.13184479]
[1740062738447,0.28239287,651.43,648.59,1.13184479]
[1740062738744,0.28239287,651.42,648.59,1.13184479]
[1740062739047,0.28239287,651.41,648.59,1.13184479]
[1740062739249,0.28239287,651.4,648.59,1.13184479]
[1740062739446,0.28239287,651.39,648.59,1.13184479]
[1740062739748,0.28239287,651.38,648.59,1.13184479]
[1740062739950,0.28239287,651.37,648.59,1.13184479]
[1740062740147,1.14217982,651.46,648.59,1.13184479]
[1740062740148,0.28239287,651.36,648.59,1.13184479]
[1740062740348,0.28239287,651.35,648.59,1.13184479]
[1740062740546,0.28239287,651.34,648.59,1.13184479]
[1740062740749,0.28239287,651.33,648.59,1.13184479]
[1740062740949,0.28239287,651.32,648.59,1.13184479]
[1740062741347,0.76842379,651.69,648.22,1.60528946]
[1740062741348,0.28239287,651.31,648.75,1.13184479]
[1740062741552,0.28239287,651.3,648.75,1.13184479]
[1740062741751,0.28239287,651.29,648.75,1.13184479]
[1740062741944,0.28239287,651.28,648.75,1.13184479]
[1740062742149,0.28239287,651.27,648.75,1.13184479]
[1740062742346,0.28239287,651.26,648.75,1.13184479]
[1740062742549,1.14217982,651.57,648.75,1.13184479]
[1740062742752,0.28218252,651.56,648.75,1.13184479]
[1740062742945,0.28218252,651.55,648.75,1.13184479]
[1740062743146,0.28218252,651.54,648.75,1.13184479]
[1740062743353,0.28218252,651.53,648.75,1.13184479]
[1740062743647,0.28218252,651.52,648.75,1.13184479]
[1740062743854,0.28218252,651.51,648.75,1.13184479]
[1740062744054,1.14217982,651.57,648.75,1.13184479]
[1740062744055,0.28218252,651.5,648.75,1.13184479]
[1740062744354,0.28218252,651.49,648.75,1.13184479]
[1740062744648,0.28218252,651.49,648.22,1.60528946]
[1740062744649,1.14217982,651.34,649.3,1.13184479]
[1740062744853,0.28218112,651.33,649.3,1.13184479]
[1740062745049,0.28218112,651.32,649.3,1.13184479]
[1740062745247,0.28218112,651.31,649.3,1.13184479]
[1740062745448,1.14217982,651.34,649.3,1.13184479]
[1740062746658,0.28223907,651.33,649.3,1.13184479]
[1740062747255,0.28223907,651.32,649.3,1.13184479]
[1740062747449,0.28223907,651.31,649.3,1.13184479]
[1740062747654,0.28223907,651.3,649.06,1.13184479]
[1740062747857,0.28223907,651.29,649.06,1.13184479]
[1740062748154,0.28223907,651.28,649.06,1.13184479]
[1740062748355,0.28223907,651.27,649.06,1.13184479]
[1740062748555,0.28223907,651.26,649.06,1.13184479]
[1740062748757,0.28223907,651.25,649.06,1.13184479]
[1740062749055,0.28223907,651.24,649.06,1.13184479]
[1740062749255,0.28223907,651.23,649.06,1.13184479]
[1740062749452,0.28223907,651.22,649.06,1.13184479]
[1740062749651,2.3822114,651.54,649.06,1.13184479]
[1740062749855,0.2822612,651.53,649.06,1.13184479]
[1740062750054,0.2822612,651.52,649.06,1.13184479]
[1740062750256,0.2822612,651.51,649.06,1.13184479]
[1740062750456,0.2822612,651.5,649.06,1.13184479]
[1740062750654,0.2822612,651.49,649.06,1.13184479]
[1740062750854,0.2822612,651.48,649.06,1.13184479]
[1740062751058,1.14217982,651.05,649.16,1.13184479]
[1740062751252,0.2822612,651.04,649.16,1.13184479]
[1740062751454,0.2822612,651.03,649.16,1.13184479]
[1740062751658,0.2822612,651.02,649.16,1.13184479]
[1740062755362,1.14217982,651.0,649.19,1.13184479]
[1740062756464,1.14217982,651.1,649.07,1.13184479]
[1740062757563,0.2823342,651.09,649.07,1.13184479]
[1740062757864,1.14217982,651.1,649.07,1.13184479]
[1740062758067,0.28237264,651.09,649.07,1.13184479]
[1740062758966,0.28237264,651.09,648.94,1.13184479]
[1740062759161,0.28237264,651.08,648.94,1.13184479]
[1740062759367,0.28237264,651.07,648.94,1.13184479]
[1740062759567,0.28237264,651.06,648.94,1.13184479]
[1740062759867,0.28237264,651.05,648.94,1.13184479]
[1740062760067,0.28237264,651.14,648.94,1.13184479]
[1740062760267,0.28237264,651.04,648.94,1.13184479]
[1740062760768,0.28237264,651.14,648.94,1.13184479]
[1740062761260,3.52371466,651.13,648.94,1.13184479]
[1740062761565,1.14217982,651.15,648.94,1.13184479]
[1740062761566,1.14217982,650.86,648.94,1.13184479]
[1740062761766,0.28237264,650.85,648.94,1.13184479]
[1740062763173,3.24134202,650.84,648.94,1.13184479]
[1740062763368,3.24134202,650.83,648.94,1.13184479]
[1740062763667,3.24134202,650.82,648.94,1.13184479]
[1740062763871,3.24134202,650.81,648.94,1.13184479]
[1740062764066,3.24134202,650.8,648.94,1.13184479]
[1740062764271,3.24134202,650.79,648.94,1.13184479]
[1740062764467,3.24134202,650.78,648.94,1.13184479]
[1740062764671,3.24134202,650.77,648.81,1.13184479]
[1740062764867,3.24134202,650.76,648.81,1.13184479]
[1740062765171,3.24134202,650.75,648.81,1.13184479]
[1740062765372,2.40647882,650.78,648.81,1.13184479]
[1740062765373,3.24134202,650.74,648.81,1.13184479]
[1740062765573,3.24134202,650.73,648.81,1.13184479]
[1740062765768,3.24134202,650.72,648.81,1.13184479]
[1740062765972,3.24134202,650.71,648.81,1.13184479]
[1740062766273,3.24134202,650.7,648.81,1.13184479]
[1740062766474,2.40647882,650.73,648.81,1.13184479]
[1740062766773,2.40647882,650.73,648.96,1.13184479]
[1740062767475,1.14217982,650.81,648.96,1.13184479]
[1740062769375,3.26675421,650.8,648.96,1.13184479]
[1740062769575,3.54918733,650.79,648.96,1.13184479]
[1740062769875,3.54918733,650.78,648.8,1.13184479]
[1740062770071,3.54918733,650.77,648.8,1.13184479]
[1740062770275,3.54918733,650.76,648.8,1.13184479]
[1740062770476,3.26675421,650.75,648.8,1.13184479]
[1740062770779,5.68855737,650.74,648.8,1.13184479]
[1740062771078,3.26675421,650.73,648.8,1.13184479]
[1740062771274,3.26675421,650.72,648.8,1.13184479]
[1740062771475,3.26675421,650.71,648.8,1.13184479]
[1740062771676,3.26675421,650.7,648.8,1.13184479]
[1740062771873,1.14217982,651.03,648.8,1.13184479]
[1740062771874,5.68855737,650.73,648.8,1.13184479]
[1740062772074,3.26675421,650.72,648.8,1.13184479]
[1740062772470,2.42180316,650.73,648.8,1.13184479]
[1740062772674,2.42180316,650.73,648.75,1.13184479]
[1740062772877,1.14217982,650.8,648.75,1.13184479]
[1740062773480,3.26447001,650.79,648.75,1.13184479]
[1740062773778,1.14217982,650.8,648.75,1.13184479]
[1740062775683,3.26387744,650.88,648.97,1.13184479]
[1740062775882,3.26387744,650.87,648.97,1.13184479]
[1740062776081,2.42027478,650.89,648.97,1.13184479]
[1740062776481,1.14217982,651.05,648.97,1.13184479]
[1740062778886,1.14217982,651.19,649.02,1.13184479]
[1740062779185,3.26516682,651.18,649.02,1.13184479]
[1740062779385,3.26516682,651.17,649.02,1.13184479]
[1740062779584,3.26516682,651.16,649.02,1.13184479]
[1740062779781,3.26516682,651.15,649.02,1.13184479]
[1740062779981,3.26516682,651.14,649.02,1.13184479]
[1740062780285,2.42075776,651.15,649.02,1.13184479]
[1740062781785,1.14217982,651.19,649.02,1.13184479]
[1740062782182,1.14217982,651.26,649.43,1.13184479]
[1740062782788,0.28228443,651.25,649.43,1.13184479]
[1740062783089,3.5480273,651.25,649.43,1.13184479]
[1740062783285,0.28228443,651.24,649.43,1.13184479]
[1740062783487,5.68650063,651.25,649.43,1.13184479]
[1740062783686,3.26574287,651.24,649.43,1.13184479]
[1740062784083,3.26618432,651.24,649.43,1.13184479]
[1740062784487,2.42075776,651.25,649.43,1.13184479]
[1740062784988,1.14217982,651.27,649.0,1.13184479]
[1740062785383,0.28232147,651.26,649.0,1.13184479]
[1740062785889,3.26618432,651.25,649.0,1.13184479]
[1740062786084,3.54850579,651.24,649.0,1.13184479]
[1740062786288,3.54850579,651.23,649.0,1.13184479]
[1740062786487,3.26618432,651.22,649.0,1.13184479]
[1740062786689,3.54850579,651.21,649.0,1.13184479]
[1740062786891,0.28232147,651.2,648.97,1.13184479]
[1740062787087,0.28232147,651.19,648.97,1.13184479]
[1740062787284,0.28232147,651.18,648.97,1.13184479]
[1740062787488,2.42075776,651.22,648.97,1.13184479]
[1740062788291,1.14217982,651.24,648.97,1.13184479]
[1740062789193,0.28235996,651.23,648.97,1.13184479]
[1740062789392,0.28235996,651.23,648.92,1.13184479]
[1740062789588,0.28235996,651.22,648.92,1.13184479]
[1740062789890,0.28235996,651.21,648.92,1.13184479]
[1740062790091,3.54874919,651.3,648.92,1.13184479]
[1740062790283,0.28235996,651.29,648.92,1.13184479]
[1740062790489,0.28235996,651.28,648.92,1.13184479]
[1740062790791,3.26638923,651.31,648.92,1.13184479]
[1740062790991,0.28236191,651.3,648.92,1.13184479]
[1740062791191,0.28236191,651.31,648.92,1.13184479]
[1740062791392,0.28236191,651.3,648.92,1.13184479]
[1740062791592,1.14217982,651.09,648.96,1.13184479]
[1740062791793,0.28236191,651.08,648.96,1.13184479]
[1740062792389,1.14217982,651.09,648.96,1.13184479]
[1740062792589,0.28243253,651.08,648.96,1.13184479]
[1740062794192,1.14217982,651.09,648.96,1.13184479]
[1740062794395,1.14217982,650.94,648.8,1.13184479]
[1740062796597,1.14217982,651.34,648.58,1.13184479]
[1740062796896,0.28242406,651.33,648.58,1.13184479]
[1740062798894,3.26353723,651.32,648.58,1.13184479]
[1740062799099,3.54596129,651.31,648.58,1.13184479]
[1740062799398,2.42093789,651.56,648.73,1.13184479]
[1740062799399,1.14217982,650.99,648.73,1.13184479]
[1740062799597,0.28242406,650.98,648.73,1.13184479]
[1740062799998,3.26353723,650.97,648.73,1.13184479]
[1740062800199,1.14217982,650.99,648.73,1.13184479]
[1740062800200,3.54596129,650.96,648.73,1.13184479]
[1740062800393,3.54596129,650.95,648.73,1.13184479]
[1740062800697,3.54596129,650.94,648.73,1.13184479]
[1740062800898,3.54596129,650.93,648.73,1.13184479]
[1740062801200,1.14217982,650.81,648.86,1.13184479]
[1740062804395,1.14217982,650.92,649.1,1.13184479]
[1740062804900,3.54914596,650.91,649.1,1.13184479]
[1740062805196,3.54914596,650.9,649.1,1.13184479]
[1740062805396,3.26675459,650.89,649.1,1.13184479]
[1740062805699,3.54917082,650.88,649.1,1.13184479]
[1740062805901,3.54917082,650.87,649.1,1.13184479]
[1740062806096,3.54917082,650.86,649.1,1.13184479]
[1740062806301,5.97180807,650.85,649.1,1.13184479]
[1740062806498,3.54917082,650.84,649.1,1.13184479]
[1740062806699,3.54917082,650.83,649.1,1.13184479]
[1740062806896,3.54917082,650.83,648.59,2.30477203]
[1740062806897,1.14217982,650.74,648.91,1.13184479]
[1740062809204,1.14217982,650.74,648.47,1.35464152]
[1740062809205,1.14217982,651.06,648.73,1.13184479]
[1740062810404,0.28243056,651.05,648.73,1.13184479]
[1740062810602,1.14217982,651.06,648.73,1.13184479]
[1740062811808,1.42461392,651.05,648.72,1.13184479]
[1740062812004,0.2824341,651.04,648.72,1.13184479]
[1740062812202,1.14217982,651.05,648.72,1.13184479]
[1740062813608,3.55248434,651.04,648.72,1.13184479]
[1740062813809,3.55248434,651.03,648.72,1.13184479]
[1740062814003,3.55248434,651.02,648.72,1.13184479]
[1740062814210,3.55248434,651.01,648.72,1.13184479]
[1740062814409,3.55248434,651.0,648.72,1.13184479]
[1740062814604,3.55248434,650.99,648.72,1.13184479]
[1740062814812,3.55248434,650.98,648.71,1.13184479]
[1740062815110,3.55248434,650.97,648.71,1.13184479]
[1740062815407,3.55248434,650.96,648.71,1.13184479]
[1740062815609,3.55248434,650.95,648.71,1.13184479]
[1740062815810,3.55248434,650.94,648.71,1.13184479]
[1740062816010,5.97710574,650.93,648.71,1.13184479]
[1740062816210,3.55248434,650.92,648.71,1.13184479]
[1740062816407,3.55248434,650.91,648.71,1.13184479]
[1740062816605,3.55248434,650.9,648.71,1.13184479]
[1740062816804,3.55248434,650.89,648.71,1.13184479]
[1740062817009,3.55248434,650.88,648.71,1.13184479]
[1740062817306,2.4246214,650.87,648.71,1.13184479]
[1740062817512,1.14217982,650.65,648.88,1.13184479]
[1740062820312,4.63974644,650.82,648.96,1.13184479]
[1740062820313,1.14217982,650.76,648.96,1.13184479]
[1740062823211,1.14217982,650.69,649.0,1.13184479]
[1740062823407,3.2689912,650.68,649.0,1.13184479]
[1740062823611,3.2689912,650.67,649.0,1.13184479]
[1740062823812,3.2689912,650.66,649.0,1.13184479]
[1740062824014,3.2689912,650.68,649.0,1.13184479]
[1740062824513,3.2689912,650.67,649.0,1.13184479]
[1740062824708,3.2689912,650.66,649.0,1.13184479]
[1740062824909,1.14217982,650.69,649.0,1.13184479]
[1740062826111,1.14217982,650.51,649.12,1.13184479]
[1740062829217,1.14217982,650.67,648.99,1.13184479]
[1740062832016,1.14217982,650.79,648.98,1.13184479]
[1740062833618,3.26862131,650.78,648.98,1.13184479]
[1740062833918,3.26862131,650.77,648.98,1.13184479]
[1740062834110,3.26862131,650.76,648.98,1.13184479]
[1740062834315,3.26862131,650.75,648.98,1.13184479]
[1740062834618,3.26862131,650.75,648.71,1.12886793]
[1740062834619,1.14217982,650.63,649.05,1.13184479]
[1740062838628,1.14217982,650.6,649.13,1.13184479]
[1740062842230,1.14217982,650.54,649.2,1.13184479]
[1740062845131,1.37061578,650.72,649.2,1.13184479]
[1740062845331,1.14217982,650.95,649.05,1.13184479]
[1740062845526,3.27829428,650.94,649.05,1.13184479]
[1740062845729,3.27829428,650.93,649.05,1.13184479]
[1740062845925,3.27829428,650.94,649.05,1.13184479]
[1740062846132,3.27829428,650.93,649.05,1.13184479]
[1740062846326,3.27829428,650.92,649.05,1.13184479]
[1740062846526,3.27829428,650.93,649.05,1.13184479]
[1740062846730,3.27829428,650.92,649.05,1.13184479]
[1740062846929,3.27829428,650.91,649.05,1.13184479]
[1740062847131,3.27829428,650.9,649.05,1.13184479]
[1740062847426,3.27829428,650.89,649.05,1.13184479]
[1740062847631,1.14217982,650.65,649.11,1.13184479]
[1740062850335,1.14217982,650.61,649.16,1.13184479]
[1740062853934,1.14217982,650.78,649.04,1.13184479]
[1740062856435,1.14217982,650.79,648.97,1.13184479]
[1740062858329,2.43111236,650.95,648.97,1.13184479]
[1740062858330,1.14217982,650.71,648.97,1.13184479]
[1740062858528,1.14217982,650.71,648.74,1.12886793]
[1740062858529,1.14217982,650.71,649.01,1.13184479]
[1740062861035,2.43111236,650.88,649.01,1.13184479]
[1740062861036,1.14217982,650.6,649.01,1.13184479]
[1740062861235,3.28125966,650.59,649.01,1.13184479]
[1740062861430,3.28125966,650.58,649.01,1.13184479]
[1740062861630,3.28125966,650.57,649.01,1.13184479]
[1740062861830,3.28125966,650.56,649.01,1.13184479]
[1740062862035,3.28125966,650.55,649.01,1.13184479]
[1740062862236,3.28125966,650.54,649.01,1.13184479]
[1740062862537,3.28125966,650.53,649.01,1.13184479]
[1740062862737,3.28125966,650.52,649.01,1.13184479]
[1740062862932,3.28125966,650.51,649.01,1.13184479]
[1740062863134,3.28125966,650.5,649.01,1.13184479]
[1740062863336,3.28125966,650.49,649.01,1.13184479]
[1740062863534,3.28125966,650.48,649.01,1.13184479]
[1740062863731,3.28125966,650.47,649.01,1.13184479]
[1740062863936,3.28125966,650.46,649.01,1.13184479]
[1740062864129,3.28125966,650.45,649.01,1.13184479]
[1740062864334,1.14217982,650.42,649.08,1.13184479]
[1740062867535,1.14217982,650.53,649.02,1.13184479]
[1740062869737,3.28046838,650.52,649.07,1.13184479]
[1740062869936,3.28046838,650.51,649.07,1.13184479]
[1740062870138,3.28025312,650.9,649.07,1.13184479]
[1740062870337,5.71225507,650.89,649.07,1.13184479]
[1740062870532,3.28025312,650.88,649.07,1.13184479]
[1740062870731,3.28025312,650.87,649.07,1.13184479]
[1740062871038,3.28025312,650.86,649.07,1.13184479]
[1740062871238,3.28025312,650.88,649.07,1.13184479]
[1740062871438,3.28025312,650.87,649.07,1.13184479]
[1740062871631,3.28025312,650.86,649.07,1.13184479]
[1740062871832,3.28025312,650.85,649.07,1.13184479]
[1740062872032,3.28025312,650.84,649.07,1.13184479]
[1740062872232,3.28025312,650.83,649.07,1.13184479]
[1740062872433,3.28025312,650.82,649.07,1.13184479]
[1740062872639,3.28025312,650.81,649.07,1.13184479]
[1740062872838,3.28025312,650.8,649.07,1.13184479]
[1740062873035,1.14217982,650.69,649.29,1.13184479]
[1740062876440,3.27359518,650.8,649.37,1.13184479]
[1740062876640,3.27359518,650.79,649.37,1.13184479]
[1740062876842,5.69998487,650.88,649.37,1.13184479]
[1740062877139,3.27359518,650.87,649.37,1.13184479]
[1740062877338,3.27359518,650.86,649.37,1.13184479]
[1740062877534,3.27359518,650.85,649.37,1.13184479]
[1740062877739,2.42638969,650.88,649.37,1.13184479]
[1740062877943,1.14217982,650.89,649.37,1.13184479]
[1740062879740,1.14217982,650.89,649.2,1.12886793]
[1740062879741,1.14217982,650.95,649.23,1.13184479]
[1740062882742,2.42596549,651.02,649.13,1.13184479]
[1740062884138,2.42596549,651.03,649.13,1.13184479]
[1740062884939,2.42596549,651.03,648.53,2.30477203]
[1740062884940,2.42596549,651.03,649.1,1.13184479]
[1740062885439,1.14217982,651.04,649.1,1.13184479]
[1740062885938,3.5546054,651.03,649.1,1.13184479]
[1740062886137,3.5546054,651.02,649.1,1.13184479]
[1740062886341,3.5546054,651.01,649.1,1.13184479]
[1740062886642,3.5546054,651.0,649.1,1.13184479]
[1740062886842,3.5546054,650.99,649.1,1.13184479]
[1740062887043,3.5546054,650.98,649.1,1.13184479]
[1740062887241,3.5546054,650.97,649.1,1.13184479]
[1740062887437,3.5546054,650.96,649.1,1.13184479]
[1740062887642,3.5546054,650.95,649.1,1.13184479]
[1740062887940,3.5546054,650.94,649.1,1.13184479]
[1740062888238,1.14217982,650.81,648.97,1.13184479]
[1740062888445,3.27222019,650.8,648.97,1.13184479]
[1740062888645,3.27222019,650.79,648.97,1.13184479]
[1740062888844,3.27222019,650.78,648.97,1.13184479]
[1740062889143,3.27222019,650.77,648.97,1.13184479]
[1740062889339,3.27222019,650.76,648.97,1.13184479]
[1740062889544,3.27222019,650.75,648.97,1.13184479]
[1740062889744,3.27222019,650.74,648.97,1.13184479]
[1740062889944,3.27222019,650.73,648.97,1.13184479]
[1740062890146,0.30735657,650.71,648.97,1.13184479]
[1740062890346,3.27222019,650.7,648.97,1.13184479]
[1740062890646,0.30737075,650.68,648.97,1.13184479]
[1740062891346,0.30737075,650.68,649.0,1.13184479]
[1740062893648,0.30737075,650.68,648.94,1.13184479]
[1740062896152,0.30737075,650.68,648.76,1.13184479]
[1740062898747,0.30737075,650.68,648.87,1.13184479]
[1740062899551,3.2706094,650.67,648.87,1.13184479]
[1740062899752,0.30738492,650.65,648.87,1.13184479]
[1740062899956,3.2706094,650.64,648.87,1.13184479]
[1740062900156,0.30739909,650.62,648.87,1.13184479]
[1740062900353,3.2706094,650.61,648.87,1.13184479]
[1740062900553,0.30741327,650.59,648.87,1.13184479]
[1740062900755,3.2706094,650.58,648.87,1.13184479]
[1740062900954,0.30742744,650.56,648.87,1.13184479]
[1740062902257,0.30742744,650.56,648.61,1.12886793]
[1740062902258,0.30742744,650.56,648.88,1.13184479]
[1740062905258,0.30742744,650.56,648.44,1.35464152]
[1740062905259,0.30742744,650.56,648.86,1.13184479]
[1740062908468,0.30742744,650.56,649.06,1.13184479]
[1740062910855,0.30742744,650.56,649.08,1.13184479]
[1740062913862,0.30742744,650.56,649.12,1.13184479]
[1740062916962,0.30742744,650.56,649.04,1.13184479]
[1740062919165,0.30742744,650.56,648.94,1.13184479]
[1740062921972,0.30742744,650.56,648.98,1.13184479]
[1740062924778,0.30742744,650.56,649.0,1.13184479]
[1740062930282,0.30742744,650.56,648.93,1.13184479]
[1740062932879,0.30742744,650.56,649.13,1.13184479]
[1740062935193,0.30742744,650.56,649.0,1.13184479]
[1740062935988,3.26738046,650.55,649.0,1.13184479]